fUSD/lending_fUSD_20250402
["ID","MTS","AMOUNT","RATE_DAILY","PERIOD"]
[356999083,1743552650717,-500.0,0.00049315,2]
[356999084,1743552650728,-500.0,0.00049315,120]
[356999085,1743552650738,-500.0,0.00049315,120]
[356999086,1743552650750,-311.96123372,0.00049315,120]
[356999087,1743552650760,-500.0,0.00049315,120]
[356999088,1743552650770,-500.0,0.00049315,30]
[356999089,1743552650779,-500.0,0.00049315,120]
[356999090,1743552650788,-500.0,0.00049315,120]
[356999091,1743552650798,-500.0,0.00049315,120]
[356999092,1743552650808,-500.0,0.00049315,120]
[356999093,1743552650818,-500.0,0.00049315,120]
[356999094,1743552650827,-635.59,0.00049315,120]
[356999095,1743552650837,-500.0,0.00049315,120]
[356999096,1743552650847,-500.0,0.00049315,120]
[356999097,1743552650856,-500.0,0.00049315,120]
[356999098,1743552650866,-500.0,0.00049315,120]
[356999099,1743552650875,-518.15,0.00049315,120]
[356999100,1743552650885,-384.3054592,0.00049315,120]
[356999101,1743552650896,-500.0,0.00049315,120]
[356999102,1743552650910,-500.0,0.00049315,120]
[356999103,1743552650920,-500.0,0.00049315,12]
[356999104,1743552650930,-500.0,0.00049315,120]
[356999105,1743552650940,-500.0,0.00049315,120]
[356999106,1743552650952,-500.0,0.00049315,120]
[356999107,1743552650961,-150.0,0.00049315,120]
[356999108,1743552650971,-500.0,0.00049315,30]
[356999109,1743552650981,-500.0,0.00049315,120]
[356999110,1743552650991,-500.0,0.00049315,120]
[356999111,1743552651001,-256.29711926,0.00049315,120]
[356999112,1743552651011,-500.0,0.00049315,120]
[356999113,1743552651020,-500.0,0.00049315,120]
[356999114,1743552651030,-500.0,0.00049315,120]
[356999115,1743552651039,-500.0,0.00049315,120]
[356999116,1743552651049,-500.0,0.00049315,120]
[356999117,1743552651059,-500.0,0.00049315,120]
[356999118,1743552651068,-500.0,0.00049315,120]
[356999119,1743552651078,-500.0,0.00049315,120]
[356999120,1743552651088,-591.83401879,0.00049315,120]
[356999121,1743552651097,-500.0,0.00049315,120]
[356999122,1743552651106,-500.0,0.00049315,120]
[356999123,1743552651116,-500.0,0.00049315,120]
[356999124,1743552651126,-500.0,0.00049315,120]
[356999125,1743552651135,-500.0,0.00049315,120]
[356999126,1743552651145,-500.0,0.00049315,120]
[356999127,1743552651154,-500.0,0.00049315,7]
[356999128,1743552651163,-500.0,0.00049315,120]
[356999129,1743552651172,-500.0,0.00049315,120]
[356999130,1743552651182,-375.49818928,0.00049315,120]
[356999131,1743552651191,-409.82519721,0.00049315,120]
[356999132,1743552651201,-260.37135023,0.00049315,120]
[356999133,1743552651211,-500.0,0.00049315,120]
[356999134,1743552651220,-500.0,0.00049315,120]
[356999135,1743552651230,-500.0,0.00049315,120]
[356999136,1743552651240,-500.0,0.00049315,120]
[356999137,1743552651250,-500.0,0.00049315,120]
[356999138,1743552651262,-646.59740517,0.00049315,120]
[356999139,1743552651271,-500.0,0.00049315,120]
[356999140,1743552651281,-522.63510611,0.00049315,120]
[356999141,1743552651290,-500.0,0.00049315,120]
[356999142,1743552651300,-500.0,0.00049315,120]
[356999143,1743552651309,-500.0,0.00049315,120]
[356999144,1743552651319,-500.0,0.00049315,120]
[356999145,1743552651328,-500.0,0.00049315,120]
[356999146,1743552651337,-576.48895124,0.00049315,120]
[356999147,1743552651347,-500.0,0.00049315,120]
[356999148,1743552651356,-500.0,0.00049315,120]
[356999149,1743552651366,-500.0,0.00049315,120]
[356999150,1743552651375,-500.0,0.00049315,120]
[356999151,1743552651385,-500.0,0.00049315,120]
[356999152,1743552651394,-500.0,0.00049315,120]
[356999153,1743552651404,-812.38840954,0.00049315,120]
[356999154,1743552651414,-500.0,0.00049315,120]
[356999155,1743552651423,-500.0,0.00049315,120]
[356999156,1743552651434,-500.0,0.00049315,120]
[356999157,1743552651444,-500.0,0.00049315,120]
[356999158,1743552651454,-500.0,0.00049315,120]
[356999159,1743552651464,-500.0,0.00049315,120]
[356999160,1743552651474,-500.0,0.00049315,120]
[356999161,1743552651484,-500.0,0.00049315,120]
[356999162,1743552651494,-500.0,0.00049315,120]
[356999163,1743552651504,-500.0,0.00049315,120]
[356999164,1743552651514,-500.0,0.00049315,120]
[356999165,1743552651523,-500.0,0.00049315,120]
[356999166,1743552651533,-500.0,0.00049315,120]
[356999167,1743552651543,-500.0,0.00049315,120]
[356999168,1743552651552,-500.0,0.00049315,120]
[356999169,1743552651562,-500.0,0.00049315,120]
[356999170,1743552651571,-500.0,0.00049315,120]
[356999171,1743552651580,-500.0,0.00049315,120]
[356999172,1743552651590,-500.0,0.00049315,120]
[356999173,1743552651599,-500.0,0.00049315,120]
[356999174,1743552651609,-2036.17,0.00049315,120]
[356999175,1743552651618,-500.0,0.00049315,120]
[356999176,1743552651627,-806.1,0.00049315,2]
[356999177,1743552651637,-500.0,0.00049315,120]
[356999178,1743552651646,-13966.83,0.00049315,7]
[356999179,1743552651656,-500.0,0.00049315,120]
[356999180,1743552651665,-1000.0,0.00049315,120]
[356999181,1743552651675,-283.35,0.00049315,120]
[356999182,1743552651685,-500.0,0.00049315,120]
[356999183,1743552651694,-500.0,0.00049315,120]
[356999184,1743552651704,-500.0,0.00049315,120]
[356999185,1743552651713,-500.0,0.00049315,120]
[356999186,1743552651723,-500.0,0.00049315,120]
[356999187,1743552651732,-500.0,0.00049315,120]
[356999188,1743552651741,-500.0,0.00049315,120]
[356999189,1743552651751,-500.0,0.00049315,120]
[356999190,1743552651761,-500.0,0.00049315,120]
[356999191,1743552651771,-500.0,0.00049315,10]
[356999192,1743552651780,-500.0,0.00049315,120]
[356999193,1743552651789,-500.0,0.00049315,120]
[356999194,1743552651799,-500.0,0.00049315,120]
[356999195,1743552651808,-296.80138769,0.00049315,120]
[356999196,1743552651818,-500.0,0.00049315,120]
[356999197,1743552651827,-500.0,0.00049315,120]
[356999198,1743552651837,-500.0,0.00049315,120]
[356999199,1743552651847,-500.0,0.00049315,120]
[356999200,1743552651856,-500.0,0.00049315,120]
[356999201,1743552651866,-500.0,0.00049315,120]
[356999202,1743552651876,-206.94,0.00049315,120]
[356999203,1743552651885,-500.0,0.00049315,120]
[356999204,1743552651895,-500.0,0.00049315,120]
[356999205,1743552651905,-500.0,0.00049315,7]
[356999206,1743552651917,-500.0,0.00049315,120]
[356999207,1743552652046,-500.0,0.00049315,120]
[356999208,1743552652056,-500.0,0.00049315,120]
[356999209,1743552652066,-843.17,0.00049315,120]
[356999210,1743552652077,-500.0,0.00049315,120]
[356999211,1743552652086,-500.0,0.00049315,120]
[356999212,1743552652096,-500.0,0.00049315,120]
[356999213,1743552652105,-500.0,0.00049315,30]
[356999214,1743552652115,-2017.76,0.00049315,120]
[356999215,1743552652125,-500.0,0.00049315,120]
[356999216,1743552652135,-500.0,0.00049315,120]
[356999217,1743552652145,-500.0,0.00049315,120]
[356999218,1743552652154,-500.0,0.00049315,120]
[356999219,1743552652165,-571.32,0.00049315,120]
[356999220,1743552652175,-500.0,0.00049315,120]
[356999221,1743552652185,-577.45906438,0.00049315,120]
[356999222,1743552652195,-500.0,0.00049315,120]
[356999223,1743552652204,-500.0,0.00049315,120]
[356999224,1743552652213,-986.45491067,0.0004933,2]
[356999225,1743552652222,-209.0,0.0004937,30]
[356999226,1743552652232,-257.928349,0.000494,78]
[356999227,1743552652242,-21593.03573738,0.000495,5]
[356999228,1743552652253,-152.0,0.00049502,4]
[356999229,1743552652263,-500.0,0.00049589,2]
[356999230,1743552652273,-500.0,0.00049589,120]
[356999231,1743552652283,-500.0,0.00049589,120]
[356999232,1743552652293,-500.0,0.00049589,120]
[356999233,1743552652302,-500.0,0.00049589,2]
[356999234,1743552652311,-500.0,0.00049589,120]
[356999235,1743552652320,-500.0,0.00049589,120]
[356999236,1743552652330,-500.0,0.00049589,120]
[356999237,1743552652340,-500.0,0.00049589,30]
[356999238,1743552652349,-500.0,0.00049589,120]
[356999239,1743552652359,-500.0,0.00049589,120]
[356999240,1743552652369,-500.0,0.00049589,120]
[356999241,1743552652378,-500.0,0.00049589,120]
[356999242,1743552652387,-500.0,0.00049589,120]
[356999243,1743552652397,-500.0,0.00049589,12]
[356999244,1743552652406,-500.0,0.00049589,120]
[356999245,1743552652417,-500.0,0.00049589,120]
[356999246,1743552652427,-150.0,0.00049589,120]
[356999247,1743552652436,-500.0,0.00049589,30]
[356999248,1743552652446,-500.0,0.00049589,120]
[356999249,1743552652455,-500.0,0.00049589,120]
[356999250,1743552652465,-500.0,0.00049589,120]
[356999251,1743552652474,-500.0,0.00049589,120]
[356999252,1743552652483,-500.0,0.00049589,120]
[356999253,1743552652492,-500.0,0.00049589,7]
[356999254,1743552652502,-500.0,0.00049589,120]
[356999255,1743552652512,-500.0,0.00049589,120]
[356999256,1743552652521,-500.0,0.00049589,120]
[356999257,1743552652531,-500.0,0.00049589,120]
[356999258,1743552652541,-500.0,0.00049589,120]
[356999259,1743552652550,-500.0,0.00049589,120]
[356999260,1743552652559,-577.37081313,0.00049589,120]
[356999261,1743552652569,-2036.17,0.00049589,120]
[356999262,1743552652579,-500.0,0.00049589,120]
[356999263,1743552652589,-113.90647624,0.00049589,2]
[356999264,1743552652674,-692.19352376,0.00049589,2]
[356999265,1743552652683,-626.76,0.00049589,120]
[356999266,1743552652693,-13966.83,0.00049589,7]
[356999267,1743552652703,-500.0,0.00049589,120]
[356999268,1743552652713,-500.0,0.00049589,10]
[356999269,1743552652723,-500.0,0.00049589,120]
[356999270,1743552652732,-500.0,0.00049589,120]
[356999271,1743552652742,-500.0,0.00049589,120]
[356999272,1743552652752,-500.0,0.00049589,120]
[356999273,1743552652761,-500.0,0.00049589,120]
[356999274,1743552652771,-500.0,0.00049589,120]
[356999275,1743552652781,-500.0,0.00049589,120]
[356999276,1743552652790,-500.0,0.00049589,120]
[356999277,1743552652800,-843.17,0.00049589,120]
[356999278,1743552652810,-500.0,0.00049589,120]
[356999279,1743552652819,-500.0,0.00049589,120]
[356999280,1743552652830,-500.0,0.00049589,30]
[356999281,1743552652840,-2017.76,0.00049589,120]
[356999282,1743552652849,-500.0,0.00049589,120]
[356999283,1743552652859,-500.0,0.00049589,120]
[356999284,1743552652868,-500.0,0.00049589,120]
[356999285,1743552652877,-500.0,0.00049589,120]
[356999286,1743552652887,-1065.0,0.00049638,30]
[356999287,1743552652897,-918.3,0.00049638,2]
[356999288,1743552652907,-150.0,0.00049676,120]
[356999289,1743552652917,-6257.5,0.000497,40]
[356999290,1743552652927,-500.0,0.00049863,2]
[356999291,1743552652936,-500.0,0.00049863,120]
[356999292,1743552652945,-500.0,0.00049863,120]
[356999293,1743552652955,-500.0,0.00049863,120]
[356999294,1743552652964,-500.0,0.00049863,2]
[356999295,1743552652974,-500.0,0.00049863,120]
[356999296,1743552652983,-500.0,0.00049863,120]
[356999297,1743552652993,-500.0,0.00049863,120]
[356999298,1743552653003,-500.0,0.00049863,30]
[356999299,1743552653014,-500.0,0.00049863,120]
[356999300,1743552653023,-500.0,0.00049863,120]
[356999301,1743552653033,-533.64146197,0.00049863,120]
[356999302,1743552653044,-500.0,0.00049863,120]
[356999303,1743552653054,-500.0,0.00049863,120]
[356999304,1743552653064,-500.0,0.00049863,12]
[356999305,1743552653073,-500.0,0.00049863,120]
[356999306,1743552653085,-301.11758819,0.00049863,120]
[356999307,1743552653095,-170.05039669,0.00049863,120]
[356999308,1743552653104,-500.0,0.00049863,30]
[356999309,1743552653114,-500.0,0.00049863,120]
[356999310,1743552653123,-500.0,0.00049863,120]
[356999311,1743552653133,-500.0,0.00049863,120]
[356999312,1743552653143,-500.0,0.00049863,120]
[356999313,1743552653152,-500.0,0.00049863,120]
[356999314,1743552653162,-500.0,0.00049863,7]
[356999315,1743552653171,-501.30604943,0.00049863,120]
[356999316,1743552653180,-500.0,0.00049863,120]
[356999317,1743552653190,-500.0,0.00049863,120]
[356999318,1743552653200,-500.0,0.00049863,120]
[356999319,1743552653210,-500.0,0.00049863,120]
[356999320,1743552653221,-500.0,0.00049863,120]
[356999321,1743552653231,-2036.17,0.00049863,120]
[356999322,1743552653240,-806.1,0.00049863,2]
[356999323,1743552653253,-13966.83,0.00049863,7]
[356999324,1743552653264,-500.0,0.00049863,120]
[356999325,1743552653274,-500.0,0.00049863,10]
[356999326,1743552653283,-500.0,0.00049863,120]
[356999327,1743552653292,-500.0,0.00049863,120]
[356999328,1743552653303,-500.0,0.00049863,120]
[356999329,1743552653312,-500.0,0.00049863,120]
[356999330,1743552653322,-500.0,0.00049863,120]
[356999331,1743552653332,-500.0,0.00049863,120]
[356999332,1743552653343,-843.17,0.00049863,120]
[356999333,1743552653352,-160.68691042,0.00049863,120]
[356999334,1743552653362,-500.0,0.00049863,120]
[356999335,1743552653371,-500.0,0.00049863,30]
[356999336,1743552653384,-2017.76,0.00049863,120]
[356999337,1743552653394,-500.0,0.00049863,120]
[356999338,1743552653405,-500.0,0.00049863,120]
[356999339,1743552653415,-500.0,0.00049863,120]
[356999340,1743552653425,-500.0,0.00049863,120]
[356999341,1743552653435,-3552.0165618,0.00049866,2]
[356999342,1743552653445,-7201.3385834,0.00049866,2]
[356999343,1743552653455,-107425.57,0.0004987,5]
[356999344,1743552653465,-5896.06254281,0.0004987,120]
[356999345,1743552653474,-151.0,0.0004987,120]
[356999346,1743552653484,-151.0,0.0004987,120]
[356999347,1743552653494,-34929.100405,0.000499,120]
[356999348,1743552653504,-2000.0,0.000499,2]
[356999349,1743552653513,-248.25,0.00049999,25]
[356999350,1743552653523,-50000.0,0.0005,50]
[356999351,1743552653533,-469.86321145,0.0005,120]
[356999352,1743552653543,-150.0,0.0005,120]
[356999353,1743552653552,-500.0,0.0005,3]
[356999354,1743552653562,-550846.82,0.0005,120]
[356999355,1743552653572,-1000.0,0.0005,60]
[356999356,1743552653581,-517704.39876116,0.0005,120]
[356999357,1743552653714,-150.0,0.000149,2]
[356999358,1743552655457,-14.13,0.000149,2]
[356999359,1743552655466,-250.0,0.00019687,2]
[356999360,1743552655477,-150.0,0.0003401,2]
[356999361,1743552655486,-150.0,0.00034026,2]
[356999362,1743552655495,-150.0,0.00034055,2]
[356999363,1743552655504,-150.0,0.00034065,2]
[356999364,1743552655514,-150.0,0.00034073,2]
[356999365,1743552655523,-150.0,0.00034077,2]
[356999366,1743552655533,-150.0,0.00034078,2]
[356999367,1743552655542,-150.0,0.00034082,2]
[356999368,1743552655552,-224.81935942,0.00034107,2]
[356999369,1743552655561,-150.0,0.00034117,2]
[356999370,1743552655570,-150.0,0.00034136,2]
[356999371,1743552655579,-150.0,0.00034148,2]
[356999372,1743552655589,-150.0,0.00034177,2]
[356999373,1743552655598,-150.0,0.00034183,2]
[356999374,1743552655607,-150.0,0.00034217,2]
[356999375,1743552655617,-150.0,0.00034227,2]
[356999376,1743552655626,-12214.35073626,0.000372,103]
[356999377,1743552655635,-3577.24555127,0.0005,120]
[356999382,1743553635108,150.01,0.00013699,2]
[356999383,1743553656593,272.99415402,0.00034321,30]
[356999384,1743553667135,-3670.77137553,0.00014899,2]
[356999385,1743553667160,-150.0,0.000149,2]
[356999386,1743553667184,-1000.0,0.000149,2]
[356999387,1743553667211,-179.22862447,0.00015,2]
[356999388,1743553707082,-1000.0,0.000149,2]
[356999390,1743553799541,-192.71806828,0.000149,2]
[356999391,1743553799581,-926.43409686,0.000149,2]
[356999400,1743553831419,-208.50534691,0.000149,2]
[356999402,1743553831429,-339.2812,0.000149,2]
[356999404,1743553831439,-150.0,0.00014999,2]
[356999406,1743553831448,-232.46175347,0.00015,2]
[356999407,1743553831460,-820.15295765,0.00015,2]
[356999408,1743553831474,-1852.138379,0.00015,2]
[356999409,1743553831485,-393.55179488,0.00015,2]
[356999410,1743553831496,-749.20652285,0.00015,2]
[356999411,1743553831508,-5600.59590052,0.00015,2]
[356999412,1743553831519,-1111.97483759,0.00015,2]
[356999413,1743553831531,-2475.883476,0.00015,2]
[356999414,1743553831543,-14547.40569529,0.00015,2]
[356999415,1743553831554,-943.7974135,0.00015,2]
[356999416,1743553831569,-2084.775,0.00015,2]
[356999417,1743553831591,-1437.26919482,0.00015,2]
[356999418,1743553831603,-1541.18937342,0.00015,2]
[356999419,1743553831614,-14342.35769434,0.00015,2]
[356999420,1743553831626,-18931.7419189,0.00015,2]
[356999421,1743553831705,-4511.19074704,0.00015,2]
[356999422,1743553831717,-14535.37780902,0.00015,2]
[356999423,1743553831729,-833.12760124,0.00015,2]
[356999424,1743553831740,-2727.3619961,0.00015,2]
[356999446,1743553837318,-5474.49699726,0.00015,2]
[356999447,1743553837375,-4600.61080137,0.00015,2]
[356999448,1743553837388,-325.78798069,0.00015,2]
[356999449,1743553837399,-425.84099571,0.00015,2]
[356999450,1743553837412,-605.30966957,0.00015,2]
[356999451,1743553837430,-763.50334123,0.00015,2]
[356999452,1743553837441,-5253.76383158,0.00015,2]
[356999453,1743553837452,-6965.46965066,0.00015,2]
[356999454,1743553837463,-1055.390328,0.00015,2]
[356999455,1743553837474,-7252.95492911,0.00015,2]
[356999456,1743553837487,-1799.94722555,0.00015,2]
[356999457,1743553837498,-19714.19760076,0.00015,2]
[356999458,1743553837509,-12147.35674476,0.00015,2]
[356999459,1743553837529,-271.51213225,0.00015,2]
[356999460,1743553837543,-17845.35196452,0.00015,2]
[356999461,1743553837555,-10306.56979904,0.00015,2]
[356999462,1743553837569,-467.05128928,0.00015,2]
[356999463,1743553837581,-2278.82971068,0.00015,2]
[356999464,1743553837593,-500.0,0.00015,2]
[356999467,1743553839627,-1358407.57247232,0.00015,2]
[356999489,1743553842613,-859.33712553,0.00015,2]
[356999496,1743553845574,-3272.45851074,0.00015,2]
[356999497,1743553845630,-1415.44956061,0.00015,2]
[356999498,1743553845740,-1227.68371111,0.00015,2]
[356999499,1743553845797,-266.31257635,0.00015,2]
[356999500,1743553845809,-431.22961645,0.00015,2]
[356999512,1743553965880,-1165.14798226,0.000149,2]
[356999513,1743553965902,-208.5053469,0.000149,2]
[356999514,1743553965924,-307626.34667084,0.00015,2]
[356999515,1743554081893,-151.0,0.000249,7]
[356999516,1743554081917,-151.0,0.000249,7]
[356999517,1743554081941,-198.0,0.000249,7]
[356999518,1743554081966,-818.406,0.00028151,18]
[356999519,1743554081989,-198.16284044,0.00028151,18]
[356999520,1743554310655,654.725,0.000147,2]
[356999521,1743554383946,-150.0,0.000149,2]
[356999522,1743554411406,-151.28,0.000149,2]
[356999523,1743554447355,-218.39277039,0.000149,2]
[356999524,1743554461985,-198.72,0.00014899,2]
[356999525,1743554530196,-150.0,0.0002087,7]
[356999526,1743554876549,150.01,0.00013699,2]
[356999527,1743554929475,-300.0,0.00014899,2]
[356999528,1743554929503,-211.0700638,0.000149,2]
[356999529,1743554929533,-265.43010613,0.000149,2]
[356999531,1743554929561,-3594.45092932,0.000149,2]
[356999533,1743554929590,-548.6364,0.000149,2]
[356999534,1743554929618,-857.4465,0.000149,2]
[356999535,1743554929647,-2550.83644588,0.000149,2]
[356999536,1743554929680,-7959.73039715,0.000149,2]
[356999537,1743554954001,-4207.32675697,0.000149,2]
[356999538,1743554954030,-994.6178,0.000149,2]
[356999539,1743554954061,-206.11377634,0.000149,2]
[356999540,1743554954091,-1236.87801101,0.000149,2]
[356999541,1743555003960,-79.15518042,0.000149,2]
[356999542,1743555003992,-2042.9336451,0.000149,2]
[356999544,1743555031660,-353.36697446,0.000149,2]
[356999545,1743555031670,-150.0,0.00014999,2]
[356999546,1743555031680,-245.55584104,0.00015,2]
[356999547,1743555031692,-1749.11860132,0.00015,2]
[356999548,1743555031704,-10484.19056156,0.00015,2]
[356999549,1743555031737,-2027.08012665,0.00015,2]
[356999550,1743555031749,-387.13222533,0.00015,2]
[356999551,1743555031845,-1043.9681432,0.00015,2]
[356999552,1743555031857,-741.6997273,0.00015,2]
[356999553,1743555031898,-57701.6687408,0.00015,2]
[356999577,1743555037527,-8217.1,0.00015,2]
[356999578,1743555037538,-8808.69,0.00015,2]
[356999579,1743555037580,-322.09286304,0.00015,2]
[356999580,1743555037634,-2266.55,0.00015,2]
[356999581,1743555037645,-1062.4557274,0.00015,2]
[356999582,1743555037739,-3279.73300446,0.00015,2]
[356999583,1743555037794,-3098.16953511,0.00015,2]
[356999584,1743555039727,-1756.1,0.00015,2]
[356999585,1743555039738,-520.933954,0.00015,2]
[356999586,1743555040071,-0.00208867,0.00015,2]
[356999587,1743555040083,-1259.96086,0.00015,2]
[356999588,1743555040099,-1930.69198691,0.00015,2]
[356999589,1743555040112,-1151.7445622,0.00015,2]
[356999590,1743555040124,-5253.33503807,0.00015,2]
[356999591,1743555040157,-3594.85851551,0.00015,2]
[356999592,1743555040171,-15011.03349337,0.00015,2]
[356999595,1743555042749,-341.46735558,0.00015,2]
[356999602,1743555043739,-1061.29224118,0.00015,2]
[356999605,1743555045572,-1907.42836594,0.00015,2]
[356999606,1743555045584,-511.79873607,0.00015,2]
[356999607,1743555045682,-4122.68790596,0.00015,2]
[356999608,1743555045693,-10581.384185,0.00015,2]
[356999609,1743555045734,-1042.4337992,0.00015,2]
[356999610,1743555045746,-279.88714531,0.00015,2]
[356999611,1743555045758,-3242.62181869,0.00015,2]
[356999612,1743555045769,-49868.69439024,0.00015,2]
[356999613,1743555045780,-4545.31242003,0.00015,2]
[356999614,1743555045791,-264898.94082283,0.00015,2]
[356999615,1743555045803,-3464.28,0.00015,2]
[356999616,1743555045895,-7599.50826345,0.00015,2]
[356999617,1743555045908,-3492.16260708,0.00015,2]
[356999645,1743555121217,199.0,0.00032,120]
[356999646,1743555510663,523.78,0.000147,2]
[356999647,1743555874928,-150.0,0.00018412,7]
[356999648,1743555879840,161.19,0.00013699,2]
[356999650,1743556013909,754.86387216,0.000148,2]
[356999657,1743556231814,-1455.15170862,0.000149,2]
[356999658,1743556231826,-1044.84829138,0.000149,2]
[356999659,1743556231837,-713.98195191,0.000149,2]
[356999660,1743556231869,-360.98630014,0.000149,2]
[356999661,1743556231881,-1425.03174795,0.000149,2]
[356999662,1743556231890,-421.687,0.000149,2]
[356999663,1743556231900,-2019.98520805,0.000149,2]
[356999664,1743556231913,-260.89409195,0.000149,2]
[356999665,1743556231923,-210.3475,0.000149,2]
[356999666,1743556231932,-376.92801006,0.000149,2]
[356999667,1743556231952,-471.58477067,0.000149,2]
[356999668,1743556231963,-1362.33021927,0.000149,2]
[356999669,1743556231973,-6268.6552,0.000149,2]
[356999670,1743556231983,-575.7083,0.000149,2]
[356999671,1743556231992,-152.09044078,0.000149,2]
[356999672,1743556232003,-191.4774264,0.000149,2]
[356999673,1743556232012,-7289.1719,0.000149,2]
[356999674,1743556232023,-450.41746482,0.000149,2]
[356999675,1743556232035,-601.02663518,0.000149,2]
[356999676,1743556232044,-162.13626602,0.000149,2]
[356999677,1743556232053,-651.87727525,0.000149,2]
[356999678,1743556232062,-204.0279072,0.000149,2]
[356999679,1743556232071,-199.06124426,0.000149,2]
[356999680,1743556232080,-155.25377624,0.00014973,2]
[356999681,1743556232089,-501.26728175,0.00014973,2]
[356999682,1743556232098,-500.0,0.00014973,2]
[356999683,1743556232107,-500.0,0.00014999,2]
[356999684,1743556232116,-500.0,0.00014999,2]
[356999685,1743556232126,-361.74570672,0.00014999,2]
[356999686,1743556232135,-3036.57412159,0.00015,2]
[356999687,1743556232146,-6341.98063417,0.00015,2]
[356999688,1743556232164,-1301.93554296,0.00015,2]
[356999689,1743556232179,-420.54461945,0.00015,2]
[356999762,1743556237738,-1639.36062512,0.00015,2]
[356999763,1743556237750,-146583.96840066,0.00015,2]
[356999764,1743556237766,-321.17425024,0.00015,2]
[356999765,1743556237778,-324.57532043,0.00015,2]
[356999766,1743556237793,-1765.0,0.00015,2]
[356999767,1743556237806,-6499.9998,0.00015,2]
[356999768,1743556237851,-1111.09053265,0.00015,2]
[356999770,1743556240046,-4658427.56022819,0.00015,2]
[356999771,1743556240264,-629.8,0.00015,2]
[356999772,1743556240321,-13791.23209452,0.00015,2]
[356999773,1743556240379,-597.13883184,0.00015,2]
[356999774,1743556240391,-8240.96278838,0.00015,2]
[356999775,1743556240403,-346.20409933,0.00015,2]
[356999783,1743556242992,-0.47900708,0.00015,2]
[356999820,1743556244435,-1318.2,0.00015,2]
[356999821,1743556244446,-2189.47208825,0.00015,2]
[356999822,1743556244458,-6888.61293931,0.00015,2]
[356999825,1743556245817,-9899.01302065,0.00015,2]
[356999826,1743556245829,-383.87296915,0.00015,2]
[356999827,1743556245842,-295.25514135,0.00015,2]
[356999828,1743556245853,-474.29121737,0.00015,2]
[356999829,1743556245865,-399447.9778331,0.00015,2]
[356999830,1743556245988,-917.89555958,0.00015,2]
[356999831,1743556246058,-494.61771879,0.00015,2]
[356999832,1743556246082,-2572.32582955,0.00015,2]
[356999833,1743556246096,-6769.12233666,0.00015,2]
[356999857,1743556330066,-150.0,0.000149,2]
[356999858,1743556339552,-118.3202,0.000149,2]
[356999859,1743556339575,-90.35217705,0.000149,2]
[356999860,1743556342346,-80.38079811,0.000149,2]
[356999861,1743556342369,-69.61920189,0.000149,2]
[356999862,1743556367134,-151.33,0.000149,2]
[356999863,1743556406418,301.33,0.000148,2]
[356999864,1743556415943,164.15501568,0.00015,7]
[356999865,1743556504288,-150.0,0.00014899,2]
[356999866,1743556561660,208.67237705,0.000148,2]
[356999867,1743556862706,-240.23682224,0.00014899,2]
[356999868,1743556924448,-150.0,0.00014899,2]
[356999869,1743556925809,151.0,0.0003429,30]
[356999870,1743556926472,156.587,0.0003429,30]